bitfinex-derivatives/quotes_SOLF0:USTF0_20250428
["timestamp","ask_amount","ask_price","bid_price","bid_amount"]
[1745823884951,42.72933593,150.69,150.64,6.6358]
[1745823885148,49.36343593,150.69,150.64,6.6358]
[1745823885357,49.36343593,150.69,150.65,6.6357]
[1745823888950,18.30933593,150.66,150.6,361.0]
[1745823889145,18.30933593,150.66,150.59,24.42]
[1745823889350,31.0557,150.65,150.61,6.6372]
[1745823891758,18.30933593,150.63,150.58,6.6385]
[1745823892158,18.30933593,150.6,150.53,30.8906283]
[1745823892355,24.42,150.59,150.53,30.8906283]
[1745823893460,24.42,150.59,150.57,6.6389]
[1745823894463,24.42,150.59,150.58,6.6388]
[1745823896161,24.42,150.59,150.57,6.6391]
[1745823896962,24.42,150.59,150.55,6.6399]
[1745823897460,24.42,150.59,150.56,6.6395]
[1745823897661,24.42,150.59,150.51,26.9759]
[1745823899666,24.42,150.59,150.56,6.6394]
[1745823900163,24.42,150.59,150.51,26.9759]
[1745823900367,24.42,150.59,150.58,6.6388]
[1745823900562,24.3,150.63,150.55,24.3]
[1745823900866,24.3,150.63,150.56,2.7904]
[1745823901268,18.30933593,150.66,150.56,2.7904]
[1745823901269,24.3,150.66,150.56,21.09973593]
[1745823901457,5.4298,150.68,150.57,5.2053]
[1745823902264,5.4298,150.68,150.64,6.6361]
[1745823902468,51.86003593,150.69,150.64,6.6361]
[1745823902768,51.86003593,150.69,150.65,6.6354]
[1745823902769,45.22593593,150.69,150.65,6.6354]
[1745823903369,51.86003593,150.69,150.65,6.6354]
[1745823903570,51.86003593,150.69,150.64,6.636]
[1745823903770,45.22593593,150.69,150.64,6.636]
[1745823903970,51.86003593,150.69,150.64,6.636]
[1745823904772,51.86003593,150.69,150.65,6.6357]
[1745823907875,45.22593593,150.69,150.64,6.6361]
[1745823908066,18.30933593,150.66,150.57,29.5053]
[1745823908266,24.3,150.65,150.57,29.5053]
[1745823908472,30.936,150.65,150.61,6.6373]
[1745823908970,6.6363,150.64,150.59,6.6383]
[1745823909170,6.6363,150.64,150.57,26.9445]
[1745823909573,6.6363,150.64,150.6,6.6379]
[1745823910375,30.9359,150.65,150.61,6.6374]
[1745823910673,18.30933593,150.63,150.57,24.3]
[1745823910874,18.30933593,150.63,150.56,363.7904]
[1745823911068,24.94623593,150.63,150.59,6.6381]
[1745823911272,18.30933593,150.63,150.56,363.7904]
[1745823912966,18.30933593,150.63,150.6,6.6378]
[1745823913675,18.30933593,150.63,150.59,6.6382]
[1745823913874,18.30933593,150.63,150.56,2.7904]
[1745823915275,18.30933593,150.63,150.6,6.6378]
[1745823916073,18.30933593,150.63,150.61,6.6373]
[1745823916273,30.9359,150.65,150.61,6.6373]
[1745823920482,6.6362,150.64,150.6,6.6378]
[1745823920681,24.3,150.65,150.56,2.7904]
[1745823921182,30.9361,150.65,150.6,6.6376]
[1745823921481,30.9361,150.65,150.56,2.7904]
[1745823921683,30.9361,150.65,150.61,6.6372]
[1745823922380,24.3,150.65,150.63,6.6366]
[1745823924484,24.3,150.65,150.64,6.6362]
[1745823925179,27.0287,150.68,150.66,6.6352]
[1745823925385,24.3,150.68,150.66,6.6352]
[1745823926184,24.3,150.68,150.67,6.6348]
[1745823926386,501.98,150.71,150.62,42.60933593]
[1745823926581,501.98,150.71,150.62,24.3]
[1745823926783,508.6135,150.71,150.66,6.635]
[1745823927084,501.98,150.71,150.66,6.635]
[1745823927287,501.98,150.71,150.68,6.6343]
[1745823927479,24.3,150.71,150.62,27.0266]
[1745823927683,24.3,150.71,150.63,2.7769]
[1745823927984,24.3,150.71,150.69,6.6336]
[1745823928186,24.3,150.71,150.64,21.05423593]
[1745823928483,33.275,150.74,150.69,6.6336]
[1745823928678,26.6429,150.74,150.69,6.6336]
[1745823928987,33.2748,150.74,150.69,6.6336]
[1745823929183,26.6429,150.74,150.69,6.6336]
[1745823929587,6.6323,150.73,150.69,6.6336]
[1745823931282,6.6323,150.73,150.7,6.6334]
[1745823933993,33.2747,150.74,150.7,6.6334]
[1745823935394,24.02,150.77,150.66,24.02]
[1745823935796,24.02,150.77,150.74,6.6316]
[1745823936395,30.6505,150.77,150.74,6.6316]
[1745823936697,18.30933593,150.75,150.66,24.02]
[1745823936890,6.6325,150.73,150.66,24.02]
[1745823937094,30.6525,150.73,150.69,6.6337]
[1745823938387,6.6327,150.72,150.69,6.6337]
[1745823940898,30.6523,150.73,150.69,6.6337]
[1745823941797,30.6523,150.73,150.66,24.02]
[1745823941798,30.6523,150.73,150.7,6.6335]
[1745823942501,24.02,150.73,150.66,24.02]
[1745823942697,18.30933593,150.75,150.66,24.02]
[1745823943200,14.07415,150.78,150.68,18.30933593]
[1745823943398,14.07415,150.78,150.69,5.3137]
[1745823943699,14.07415,150.78,150.77,6.6304]
[1745823949911,14.07415,150.78,150.75,6.631]
[1745823950106,14.07415,150.78,150.7,2.6601]
[1745823950107,14.07415,150.78,150.7,26.6601]
[1745823950510,14.07415,150.78,150.77,6.6304]
[1745823950811,14.07415,150.78,150.74,24.0]
[1745823951205,14.07415,150.78,150.75,6.631]
[1745823951411,14.07415,150.78,150.74,24.0]
[1745823951911,14.07415,150.78,150.76,6.6308]
[1745823952410,14.07415,150.78,150.74,24.0]
[1745823952813,14.07415,150.78,150.77,6.6304]
[1745823953415,14.07415,150.78,150.71,24.0]
[1745823953810,20.70425,150.78,150.73,6.6322]
[1745823954114,56.38348593,150.78,150.73,6.6322]
[1745823955316,6.6309,150.76,150.72,6.6325]
[1745823955815,6.6305,150.77,150.73,6.6322]
[1745823956413,63.01358593,150.78,150.7,2.6601]
[1745823956614,38.07415,150.78,150.7,20.96943593]
[1745823956819,14.07415,150.78,150.7,20.96943593]
[1745823957320,14.07415,150.78,150.77,6.6304]
[1745823971835,23.9,150.84,150.76,18.30933593]
[1745823972234,23.9,150.84,150.81,6.6283]
[1745823972436,23.9,150.84,150.78,23.9]
[1745823972634,2.589,150.86,150.78,23.9]
[1745823972835,6.627,150.85,150.81,6.6283]
[1745823973235,2.589,150.86,150.78,23.9]
[1745823973535,6.627,150.85,150.82,6.6282]
[1745823976436,2.589,150.86,150.78,23.9]
[1745823976737,2.634,150.85,150.78,23.9]
[1745823977438,6.6278,150.84,150.8,6.6291]
[1745823979138,6.6278,150.83,150.8,6.6291]
[1745823979542,6.6278,150.83,150.81,6.6286]
[1745823979839,18.05768155,150.84,150.81,6.6286]
[1745823981143,11.43008155,150.84,150.82,6.6282]
[1745823981340,11.43008155,150.84,150.78,23.9]
[1745823981544,2.634,150.85,150.78,23.9]
[1745823981741,2.589,150.86,150.84,6.6274]
[1745823981942,2.589,150.86,150.78,35.33008155]
[1745823981943,23.9,150.87,150.8,11.43008155]
[1745823982142,23.9,150.87,150.78,37.1599]
[1745823982143,23.9,150.87,150.82,11.43008155]
[1745823982342,23.9,150.9,150.82,35.33008155]
[1745823982739,23.9,150.9,150.83,2.7437]
[1745823982939,11.43008155,150.92,150.84,11.43008155]
[1745823983337,11.43008155,150.92,150.89,6.625]
[1745823983537,18.27061328,150.92,150.82,23.9]
[1745823983837,18.27061328,150.89,150.82,23.9]
[1745823984036,24.89601328,150.89,150.84,6.627]
[1745823984241,18.27061328,150.89,150.82,23.9]
[1745823984443,30.5237,150.93,150.83,18.27061328]
[1745823985141,23.9,150.93,150.83,18.27061328]
[1745823986246,6.6247,150.91,150.87,6.626]
[1745823986746,23.9,150.93,150.83,18.27061328]
[1745823987646,6.6241,150.92,150.83,18.27061328]
[1745823988347,6.6241,150.92,150.88,6.6255]
[1745823989147,6.6241,150.92,150.89,6.6251]
[1745823989347,6.6241,150.92,150.83,18.27061328]
[1745823989543,23.9,150.93,150.83,18.27061328]
[1745823989747,23.9,150.93,150.9,6.6245]
[1745823990046,23.9,150.93,150.87,23.76]
[1745823990348,2.8268,150.95,150.87,23.76]
[1745823990949,2.8268,150.95,150.93,6.6234]
[1745823991251,42.03061328,150.96,150.93,6.6234]
[1745823991549,42.03061328,150.96,150.94,6.6229]
[1745823992949,23.76,150.96,150.87,23.76]
[1745823993245,5.327,150.98,150.89,18.27061328]
[1745823993453,23.90571328,151.03,150.97,6.6214]
[1745823993749,23.90571328,151.03,150.95,23.74]
[1745823993953,6.6209,150.99,150.94,6.6226]
[1745823994151,42.01061328,151.0,150.91,23.74]
[1745823994649,6.6208,150.99,150.91,23.74]
[1745823995750,6.6208,150.99,150.95,6.6223]
[1745823996053,48.63101328,151.0,150.91,23.74]
[1745823996249,23.74,151.0,150.91,23.74]
[1745823996447,23.74,151.0,150.91,29.1066]
[1745823997651,23.74,151.0,150.96,6.6217]
[1745823998652,30.3604,151.0,150.96,6.6217]
[1745823999450,23.74,151.0,150.97,6.6216]
[1745824001952,6.6201,151.01,150.97,6.6216]
[1745824002254,6.6201,151.01,150.98,6.6212]
[1745824004257,6.6196,151.02,150.98,6.6212]
[1745824004457,23.90571328,151.03,150.91,29.1066]
[1745824004656,21.09511328,151.03,150.92,18.27061328]
[1745824004857,27.71441328,151.03,150.92,18.27061328]
[1745824005458,11.40156059,151.02,150.93,11.40156059]
[1745824005756,11.40156059,151.02,150.99,6.6205]
[1745824006859,18.02106059,151.02,150.99,6.6205]
[1745824007058,18.02106059,151.02,150.98,6.6211]
[1745824007261,18.02106059,151.02,150.95,23.74]
[1745824008953,18.02106059,151.02,150.98,6.621]
[1745824009863,18.02106059,151.02,150.99,6.6208]
[1745824010158,11.40156059,151.0,150.95,23.74]
[1745824010853,18.02216059,151.0,150.95,23.74]
[1745824011060,18.02216059,151.0,150.96,6.6218]
[1745824011263,18.02216059,151.0,150.95,23.74]
[1745824011560,2.6514,151.02,150.95,23.74]
[1745824011762,14.05296059,151.02,150.95,23.74]
[1745824012257,11.40156059,151.02,150.95,23.74]
[1745824014265,11.40156059,151.02,150.99,6.6205]
[1745824015868,18.02106059,151.02,150.99,6.6205]
[1745824016267,11.40156059,151.02,150.99,6.6205]
[1745824016668,11.40156059,151.02,150.95,23.74]
[1745824017168,18.02136059,151.02,150.95,23.74]
[1745824017362,37.92466059,151.04,150.95,35.14156059]
[1745824017667,44.54346059,151.04,151.0,6.6201]
[1745824018268,6.6191,151.03,151.0,6.6201]
[1745824018871,18.02116059,151.02,150.95,23.74]
[1745824019274,11.40156059,151.0,150.95,23.74]
[1745824019572,11.40156059,151.0,150.97,6.6217]
[1745824020474,11.40156059,151.0,150.98,6.6212]
[1745824020776,11.40156059,151.0,150.95,23.74]
[1745824020973,11.40156059,150.98,150.92,23.72]
[1745824021670,11.40156059,150.98,150.95,6.6223]
[1745824021970,11.40156059,150.98,150.92,23.72]
[1745824022173,11.40156059,150.98,150.96,6.6218]
[1745824023074,11.40156059,150.98,150.92,23.72]
[1745824023774,18.02296059,150.98,150.92,23.72]
[1745824024174,11.40156059,150.98,150.91,5.3666]
[1745824024371,11.40156059,150.96,150.9,23.72]
[1745824025476,18.02396059,150.96,150.92,6.6235]
[1745824026276,6.6226,150.95,150.92,6.6235]
[1745824026575,6.6226,150.95,150.91,6.624]
[1745824026875,18.02386059,150.96,150.91,6.624]
[1745824027071,18.02386059,150.96,150.9,23.72]
[1745824027072,11.40156059,150.96,150.9,30.3447]
[1745824027276,11.40156059,150.92,150.86,2.6433]
[1745824027772,11.40156059,150.92,150.87,6.626]
[1745824027978,18.02566059,150.92,150.85,23.95842]
[1745824028476,11.40156059,150.92,150.85,23.95842]
[1745824029776,11.40156059,150.92,150.88,6.6254]
[1745824030277,18.02556059,150.92,150.88,6.6254]
[1745824030878,18.02556059,150.92,150.89,6.6251]
[1745824031078,11.40156059,150.92,150.89,6.6251]
[1745824033080,11.40156059,150.92,150.85,23.95842]
[1745824033578,11.40156059,150.92,150.9,6.6245]
[1745824037283,11.40156059,150.92,150.91,6.6243]
[1745824037484,11.40156059,150.94,150.85,35.35998059]
[1745824037887,11.40156059,150.94,150.91,6.6242]
[1745824038079,18.02466059,150.94,150.91,6.6242]
[1745824038481,11.40156059,150.94,150.9,6.6246]
[1745824038686,6.6234,150.93,150.9,6.6246]
[1745824039786,18.02566059,150.92,150.85,23.95842]
[1745824040087,11.40156059,150.92,150.85,23.95842]
[1745824040785,11.40156059,150.92,150.89,6.6249]
[1745824041282,18.02546059,150.92,150.89,6.6249]
[1745824041486,18.02546059,150.92,150.88,6.6255]
[1745824042788,18.02546059,150.92,150.89,6.625]
[1745824043284,11.40156059,150.9,150.85,23.95842]
[1745824043489,11.40156059,150.88,150.85,23.95842]
[1745824043785,11.40156059,150.88,150.85,0.23842]
[1745824044391,18.02646059,150.9,150.86,6.6265]
[1745824044690,11.40156059,150.9,150.85,0.23842]
[1745824044988,18.02636059,150.9,150.86,6.6263]
[1745824045390,11.40156059,150.9,150.85,0.23842]
[1745824045890,11.40156059,150.88,150.86,6.6263]
[1745824046192,11.40156059,150.88,150.85,0.23842]
[1745824046990,6.6263,150.87,150.85,0.23842]
[1745824047187,11.40156059,150.86,150.85,0.23842]
[1745824047890,11.40156059,150.86,150.81,6.6283]
[1745824048086,11.40156059,150.84,150.81,6.6283]
[1745824048485,11.40156059,150.84,150.8,6.629]
[1745824049191,6.6281,150.83,150.79,6.6293]
[1745824049791,41.74926059,150.84,150.8,6.6289]
[1745824050494,41.74926059,150.84,150.81,6.6286]
[1745824050495,35.12156059,150.84,150.81,6.6286]
[1745824051390,23.72,150.84,150.77,11.40156059]
[1745824051895,11.40156059,150.86,150.84,6.6271]
[1745824052295,11.40156059,150.88,150.79,11.40156059]
[1745824052495,35.14156059,150.88,150.86,6.6264]
[1745824053495,23.74,150.88,150.87,6.6261]
[1745824053896,500.76,150.91,150.88,6.6253]
[1745824054500,11.40156059,150.9,150.81,11.40156059]
[1745824055396,11.40156059,150.9,150.87,6.6258]
[1745824057297,11.40156059,150.9,150.81,11.40156059]
[1745824057499,23.74,150.91,150.83,11.40156059]
[1745824057796,23.74,150.91,150.9,6.6247]
[1745824059900,11.40156059,150.92,150.9,6.6247]
[1745824060095,35.12156059,150.94,150.85,11.40156059]
[1745824060398,23.72,150.94,150.85,11.40156059]
[1745824060595,23.72,150.94,150.86,2.6609]
[1745824060796,23.72,150.94,150.91,6.624]
[1745824061099,11.40156059,150.93,150.86,2.6609]
[1745824061397,11.40156059,150.93,150.91,6.6243]
[1745824063498,11.40156059,150.93,150.86,2.6609]
[1745824064702,11.40156059,150.93,150.89,6.6249]
[1745824066203,18.02516059,150.93,150.89,6.6249]
[1745824066999,11.40156059,150.91,150.86,6.6262]
[1745824067205,11.40156059,150.89,150.86,6.6262]
[1745824067805,11.40156059,150.89,150.87,6.626]
[1745824068005,11.40156059,150.91,150.87,6.626]
[1745824068707,18.02606059,150.91,150.87,6.626]
[1745824069701,11.40156059,150.91,150.84,26.5698]
[1745824069906,11.40156059,150.93,150.84,26.5698]
[1745824070106,11.40156059,150.93,150.85,2.7203]
[1745824070306,11.40156059,150.93,150.85,14.12186059]
[1745824071507,11.40156059,150.93,150.9,6.6246]
[1745824074904,23.72,150.94,150.85,14.12186059]
[1745824075110,11.40156059,150.95,150.87,11.40156059]
[1745824075307,11.40156059,150.95,150.88,26.4822]
[1745824075610,11.40156059,150.95,150.92,6.6236]
[1745824076106,11.40156059,150.95,150.93,6.6234]
[1745824081618,11.40156059,150.95,150.94,6.623]
[1745824081816,35.12156059,150.97,150.88,26.4822]
[1745824082211,6.6224,150.96,150.88,26.4822]
[1745824084615,6.6224,150.96,150.92,6.6234]
[1745824084815,41.74346059,150.97,150.88,26.4822]
[1745824085912,6.6222,150.96,150.88,26.4822]
[1745824086412,6.6222,150.96,150.93,6.6234]
[1745824087116,41.74346059,150.97,150.93,6.6234]
[1745824088314,41.74346059,150.97,150.94,6.6229]
[1745824088516,2.5863,151.0,150.91,11.40156059]
[1745824088814,35.12156059,151.02,150.98,6.6209]
[1745824089009,11.40156059,151.0,150.94,23.72]
[1745824090318,11.40156059,151.0,150.97,6.6215]
[1745824090618,11.40156059,151.0,150.94,23.72]
[1745824090619,35.12156059,151.02,150.94,23.72]
[1745824090819,23.72,151.02,150.99,6.6205]
[1745824091314,23.72,151.02,150.95,13.97876059]
[1745824091717,11.40156059,151.04,150.95,13.97876059]
[1745824091918,11.40156059,151.04,151.0,6.62]
[1745824092118,6.6191,151.03,150.95,13.97876059]
[1745824092319,11.40156059,151.0,150.94,23.72]
[1745824092521,11.40156059,151.0,150.97,6.6213]
[1745824093525,11.40156059,151.0,150.94,23.72]
[1745824093726,11.40156059,150.98,150.91,384.72]
[1745824093920,11.40156059,150.98,150.91,23.72]
[1745824094120,11.40156059,150.98,150.94,6.6227]
[1745824094616,11.40156059,150.98,150.91,23.72]
[1745824095225,18.02306059,150.98,150.91,23.72]
[1745824095527,11.40156059,150.98,150.91,23.72]
[1745824095823,11.40156059,150.98,150.95,6.6223]
[1745824096118,23.72,150.97,150.95,6.6223]
[1745824096324,18.02396059,150.96,150.92,6.6238]
[1745824096523,11.40156059,150.94,150.92,6.6238]
[1745824097031,19.62936059,150.96,150.93,6.6234]
[1745824097325,16.86396059,150.96,150.88,23.72]
[1745824098226,16.86396059,150.96,150.93,6.6232]
[1745824099127,11.40156059,150.94,150.88,23.72]
[1745824099524,11.40156059,150.94,150.85,35.12156059]
[1745824099726,6.6237,150.93,150.89,6.625]
[1745824100428,18.02466059,150.94,150.9,6.6247]
[1745824101227,11.40156059,150.94,150.91,6.6242]
[1745824102225,18.02466059,150.94,150.91,6.6242]
[1745824102425,11.40156059,150.94,150.91,6.6242]
[1745824103227,18.02456059,150.94,150.91,6.6242]
[1745824103627,11.40156059,150.94,150.9,6.6245]
[1745824103818,8.0868,150.96,150.85,23.72]
[1745824103819,11.40156059,150.92,150.85,23.72]
[1745824104127,18.02566059,150.92,150.85,23.72]
[1745824104628,11.40156059,150.92,150.89,6.6249]
[1745824104825,23.72,150.93,150.86,11.40156059]
[1745824105826,23.72,150.93,150.92,6.6239]
[1745824107928,44.49146059,150.96,150.93,6.6234]
[1745824109030,11.40156059,150.94,150.86,11.40156059]
[1745824109225,11.40156059,150.94,150.85,23.72]
[1745824110126,11.40156059,150.94,150.9,6.6245]
[1745824110829,18.02466059,150.94,150.9,6.6245]
[1745824111231,11.40156059,150.94,150.91,6.624]
[1745824111428,11.40156059,150.94,150.86,11.40156059]
[1745824111734,37.86936059,150.96,150.88,11.40156059]
[1745824112630,35.12156059,150.96,150.93,6.6232]
[1745824113431,41.74366059,150.96,150.93,6.6232]
[1745824115732,35.12156059,150.96,150.94,6.6228]
[1745824121745,35.12156059,150.96,150.94,6.6228]
[1745824122244,35.12156059,150.96,150.95,6.6225]
[1745824122443,23.72,150.96,150.95,6.6225]
[1745824123444,23.72,150.96,150.94,6.6228]
[1745824124746,30.3421,150.96,150.94,6.6228]
[1745824124942,41.74366059,150.96,150.93,6.6233]
[1745824127841,41.74366059,150.96,150.89,31.832]
[1745824127842,6.6226,150.95,150.92,6.6238]
[1745824128748,11.40156059,150.94,150.86,23.7]
[1745824129147,6.6235,150.93,150.86,23.7]
[1745824129649,6.6235,150.93,150.89,6.6248]
[1745824130450,6.6242,150.92,150.88,6.6255]
[1745824130645,11.40156059,150.92,150.86,23.7]
[1745824130848,35.10156059,150.92,150.86,23.7]
[1745824131046,35.10156059,150.92,150.84,2.6691]
[1745824131250,6.6247,150.91,150.87,6.626]
[1745824132246,41.72556059,150.92,150.88,6.6256]
[1745824132648,35.10156059,150.92,150.84,2.6691]
[1745824132949,6.6243,150.91,150.87,6.6257]
[1745824133151,35.10156059,150.92,150.84,2.6691]
[1745824133649,41.72566059,150.92,150.88,6.6254]
[1745824133850,35.10156059,150.92,150.88,6.6254]
[1745824135047,35.10156059,150.92,150.87,6.6259]
[1745824135253,11.40156059,150.9,150.83,23.7]
[1745824135742,6.6254,150.89,150.85,6.6267]
[1745824136251,6.6254,150.89,150.86,6.6264]
[1745824136550,11.40156059,150.9,150.83,23.7]
[1745824136851,2.637,150.91,150.88,6.6256]
[1745824137052,35.10156059,150.92,150.84,11.40156059]
[1745824137248,23.7,150.92,150.84,11.40156059]
[1745824137448,23.7,150.92,150.86,11.40156059]
[1745824137651,26.3533,150.95,150.88,11.40156059]
[1745824137950,26.3533,150.95,150.92,6.6236]
[1745824138452,32.9759,150.95,150.92,6.6236]
[1745824138751,26.3533,150.95,150.92,6.6236]
[1745824138951,26.3533,150.95,150.91,6.6241]
[1745824139150,32.9761,150.95,150.91,6.6241]
[1745824139550,11.40156059,150.94,150.89,6.6248]
[1745824140347,11.40156059,150.94,150.9,6.6246]
[1745824140552,18.02466059,150.94,150.87,23.72]
[1745824140854,11.40156059,150.94,150.9,6.6245]
[1745824141252,6.6237,150.93,150.9,6.6245]
[1745824142253,18.02466059,150.94,150.91,6.6241]
[1745824143854,6.6235,150.93,150.91,6.6241]
[1745824144055,6.6235,150.93,150.9,6.6246]
[1745824145158,6.6235,150.93,150.91,6.6243]
[1745824146661,18.02466059,150.94,150.91,6.6243]
[1745824148455,6.6234,150.93,150.91,6.6243]
[1745824148858,11.40156059,150.94,150.91,6.6243]
[1745824149058,18.02486059,150.94,150.91,6.6243]
[1745824152158,32.9761,150.95,150.87,23.72]
[1745824153662,11.40156059,150.94,150.87,23.72]
[1745824153863,11.40156059,150.92,150.85,2.7082]
[1745824154063,30.3246,150.91,150.87,6.6258]
[1745824154263,23.7,150.91,150.87,6.6258]
[1745824154960,6.6247,150.9,150.87,6.6258]
[1745824156262,6.6254,150.89,150.86,6.6265]
[1745824156457,23.7,150.91,150.81,2.8063]
[1745824156458,11.40156059,150.88,150.81,26.5063]
[1745824157763,11.40156059,150.88,150.86,6.6265]
[1745824162060,11.40156059,150.9,150.81,26.5063]
[1745824163265,18.02636059,150.9,150.87,6.626]
[1745824164267,11.40156059,150.9,150.82,11.40156059]
[1745824164768,11.40156059,150.9,150.88,6.6253]
[1745824164963,11.40156059,150.9,150.82,11.40156059]
[1745824165166,11.40156059,150.9,150.81,26.5063]
[1745824166066,18.02656059,150.9,150.86,6.6261]
[1745824167566,18.02656059,150.9,150.87,6.626]
[1745824169470,6.6252,150.89,150.87,6.626]
[1745824169967,6.6252,150.89,150.83,6.6276]
[1745824170269,18.02726059,150.88,150.81,26.5063]
[1745824170570,18.02726059,150.88,150.85,6.6267]
[1745824171466,18.02726059,150.88,150.86,6.6265]
[1745824173072,11.40156059,150.88,150.86,6.6265]
[1745824174072,18.02716059,150.88,150.85,6.6267]
[1745824174473,18.02716059,150.88,150.81,26.5063]
[1745824174972,11.40156059,150.88,150.81,26.5063]
[1745824175976,6.6254,150.89,150.82,11.40156059]
[1745824176875,6.6254,150.89,150.86,6.6264]
[1745824179377,11.40156059,150.88,150.86,6.6264]
[1745824183581,11.40156059,150.88,150.87,6.6261]
[1745824183880,11.40156059,150.88,150.81,26.5063]
[1745824184079,11.40156059,150.88,150.85,6.6266]
[1745824185180,18.02716059,150.88,150.85,6.6266]
[1745824187087,6.6261,150.87,150.84,6.6272]
[1745824187685,11.40156059,150.86,150.78,27.68081665]
[1745824187980,11.40156059,150.84,150.78,26.5272]
[1745824188181,11.40156059,150.82,150.75,26.4719]
[1745824188588,23.7,150.83,150.75,26.4719]
[1745824188787,23.7,150.83,150.82,6.6282]
[1745824188992,23.7,150.83,150.76,11.40156059]
[1745824189193,23.7,150.83,150.81,6.6285]
[1745824190693,23.7,150.83,150.8,6.6289]
[1745824191097,30.3278,150.83,150.8,6.6289]
[1745824191298,30.3278,150.83,150.79,6.6294]
[1745824191598,6.6283,150.82,150.75,37.87346059]
[1745824191799,18.02986059,150.82,150.75,26.4719]
[1745824192093,18.02986059,150.82,150.78,6.6299]
[1745824192299,6.6288,150.81,150.78,6.6299]
[1745824193499,11.40156059,150.8,150.72,384.72]
[1745824193700,23.72,150.79,150.72,384.72]
[1745824193900,23.72,150.79,150.76,6.6308]
[1745824195402,23.72,150.79,150.77,6.6303]
[1745824195902,23.72,150.79,150.72,35.12156059]
[1745824196103,23.72,150.79,150.78,6.63]
[1745824196403,37.17166059,150.82,150.72,35.12156059]
[1745824196702,37.17166059,150.82,150.79,6.6293]
[1745824197105,35.12156059,150.82,150.74,11.40156059]
[1745824197304,23.72,150.82,150.75,4.3914]
[1745824197499,23.72,150.82,150.76,11.40156059]
[1745824197700,23.72,150.82,150.81,6.6287]
[1745824204705,37.18236059,150.86,150.78,11.40156059]
[1745824205009,37.18236059,150.86,150.84,6.6272]
[1745824206409,37.18236059,150.86,150.76,25.8555]
[1745824206602,11.40156059,150.83,150.76,25.8555]
[1745824206801,11.40156059,150.83,150.81,6.6287]
[1745824207307,11.40156059,150.83,150.82,6.6282]
[1745824208211,11.40156059,150.83,150.76,23.72]
[1745824208513,23.7,150.82,150.79,6.6293]
[1745824211613,11.40156059,150.81,150.79,6.6293]
[1745824214312,11.40156059,150.81,150.8,6.6291]
[1745824216515,13.54316059,150.85,150.76,11.40156059]
[1745824216813,37.26316059,150.85,150.76,11.40156059]
[1745824218513,37.26316059,150.85,150.83,6.6278]
[1745824218817,35.12156059,150.85,150.83,6.6278]
[1745824221016,41.74866059,150.85,150.83,6.6278]
[1745824221718,35.12156059,150.85,150.83,6.6278]
[1745824223115,41.74846059,150.85,150.82,6.628]
[1745824223419,35.12156059,150.85,150.77,23.72]
[1745824223919,35.12156059,150.85,150.83,6.6276]
[1745824225319,41.74856059,150.85,150.83,6.6276]
[1745824226221,35.12156059,150.85,150.84,6.6274]
[1745824228121,35.12156059,150.85,150.83,6.6276]
[1745824229820,41.74846059,150.85,150.83,6.6276]
[1745824230020,41.74846059,150.85,150.82,6.6281]
[1745824230319,35.12156059,150.85,150.78,1.9151]
[1745824231120,41.74856059,150.85,150.78,1.9151]
[1745824231418,41.74856059,150.85,150.82,6.628]
[1745824231718,35.12156059,150.85,150.82,6.628]
[1745824233214,41.74876059,150.85,150.82,6.628]
[1745824235223,35.12156059,150.85,150.82,6.628]
[1745824235522,35.12156059,150.85,150.83,6.6278]
[1745824235922,35.12156059,150.85,150.78,1.9151]
[1745824236123,35.12156059,150.85,150.82,6.6279]
[1745824236621,41.74856059,150.85,150.82,6.6279]
[1745824238026,6.6274,150.84,150.81,6.6285]
[1745824238220,11.40156059,150.83,150.77,23.72]